[Event "POL-chT 2nd League Juniors 2020"]
[Site "Sypniewo"]
[Date "2020.10.29"]
[Round "8.9"]
[White "Doroba, Ludwik"]
[Black "Duda, Leon"]
[Result "1/2-1/2"]
[ECO "A44"]
[WhiteElo "1330"]
[BlackElo "1388"]
[Annotator "NA RC"]
[PlyCount "106"]
[EventDate "2020.10.23"]
[EventType "team-tourn"]
[EventCountry "POL"]
[SourceTitle "playchess.com"]
[Source "ChessBase"]
[SourceQuality "1"]
[TimeControl "5400+30"]

1. d4 {[%emt 0:00:00]} c5 {[%emt 0:00:00]} 2. d5 {[%emt 0:00:00]} e5 {[%emt 0:00:00]} 3. e4 {[%emt 0:00:00]} d6 {[%emt 0:00:04]} 4. Nc3 {[%emt 0:00:08]} g6 {[%emt 0:00:11]} 5. Nf3 {[%emt 0:02:16]} Bg7 {[%emt 0:00:47]} 6. Bb5+ {[%emt 0:04:26]} Nd7 {[%emt 0:00:51]} 7. O-O {[%emt 0:01:28]} a6 {[%emt 0:00:21]} 8. Bxd7+ {[%emt 0:00:34]} Bxd7 {[%emt 0:00:07]} 9. a4 {[%emt 0:04:46]} Ne7 {[%emt 0:00:34]} 10. Ne1 {[%emt 0:01:43]} O-O {[%emt 0:02:49]} 11. f3 {[%emt 0:01:08]} b5 12. b3 {[%emt 0:04:23]} b4 {[%emt 0:06:36]} 13. Ne2 {[%emt 0:01:17]} f5 {[%emt 0:02:18]} 14. Nd3 {[%emt 0:05:06]} f4 {[%emt 0:04:37]} 15. Nb2 {[%emt 0:05:59]} h5 {[%emt 0:02:01]} 16. Kh1 {[%emt 0:05:18]} g5 {[%emt 0:02:43]} 17. Ng1 {[%emt 0:01:02]} Ng6 {[%emt 0:01:52]} 18. Bd2 {[%emt 0:02:04]} g4 {[%emt 0:05:38]} 19. Nc4 {[%emt 0:01:29]} Rf6 {[%emt 0:09:17]} 20. Qe2 {[%emt 0:01:57]} g3 {[%emt 0:02:03]} 21. h3 {[%emt 0:00:11]} Nf8 {[%emt 0:01:35]} 22. Rfb1 {[%emt 0:03:39]} Nh7 {[%emt 0:01:31]} 23. Qf1 {[%emt 0:01:12]} Rg6 {[%emt 0:00:58]} 24. Re1 {[%emt 0:00:43]} Rb8 {[%emt 0:02:57]} 25. Re2 {[%emt 0:02:49]} Bf8 {[%emt 0:05:07]} 26. Rd1 {[%emt 0:02:25]} Rb7 {[%emt 0:04:20]} 27. Bc1 {[%emt 0:00:45]} Be7 {[%emt 0:02:41]} 28. Bb2 {[%emt 0:00:59]} Bh4 {[%emt 0:01:19]} 29. Rdd2 {[%emt 0:01:25]} Qc8 {[%emt 0:01:15]} 30. Ba1 {[%emt 0:00:44]} Ng5 {[%emt 0:00:43]} 31. Bb2 {[%emt 0:00:45]} Kh7 {[%emt 0:01:14]} 32. Ba1 {[%emt 0:00:42]} Nxh3 {[%emt 0:01:21]} 33. gxh3 {[%emt 0:01:13]} g2+ {[%emt 0:00:56]} 34. Rxg2 {[%emt 0:00:33]} Bxh3 {[%emt 0:00:48]} 35. Nxh3 {[%emt 0:00:24]} Qxh3+ {[%emt 0:00:12]} 36. Kg1 {[%emt 0:00:07]} Bg3 {[%emt 0:00:35]} 37. Qe2 {[%emt 0:02:14]} h4 {[%emt 0:02:05]} 38. Bxe5 {[%emt 0:01:21]} Qd7 {[%emt 0:04:25]} 39. Bxf4 {[%emt 0:03:41]} Qg7 {[%emt 0:08:54]} 40. Bxg3 {[%emt 0:18:37]} h3 {[%emt 0:00:31]} 41. Be5 {[%emt 0:01:19]} dxe5 {[%emt 0:07:34]} 42. Rg4 {[%emt 0:07:49]} Qf6 {[%emt 0:02:47]} 43. Rxg6 {[%emt 0:01:44]} Kxg6 {[%emt 0:00:49]} 44. Qh2 {[%emt 0:02:30]} Qh4 {[%emt 0:10:23]} 45. Rg2+ {[%emt 0:03:22]} Kh6 {[%emt 0:01:43]} 46. Qg3 {[%emt 0:00:30]} Qh5 {[%emt 0:00:46]} 47. Qg6+ {[%emt 0:01:44]} Qxg6 {[%emt 0:00:12]} 48. Rxg6+ {[%emt 0:00:03]} Kxg6 {[%emt 0:00:07]} 49. Nxe5+ {[%emt 0:00:10]} Kf6 {[%emt 0:00:54]} 50. Nd3 {[%emt 0:02:30]} Rc7 {[%emt 0:01:29]} 51. Kh2 {[%emt 0:01:13]} a5 {[%emt 0:00:53]} 52. Nb2 {[%emt 0:00:58]} Ke5 {[%emt 0:00:54]} 53. Nc4+ {[%emt 0:00:12]} Kf4 {[%emt 0:00:08]} 1/2-1/2

[Event "POL-chT 2nd League Juniors 2020"]
[Site "Sypniewo"]
[Date "2020.10.29"]
[Round "8.10"]
[White "Rozek, Michal"]
[Black "Leszczewicz, Karol"]
[Result "1-0"]
[ECO "B52"]
[WhiteElo "1442"]
[BlackElo "1267"]
[Annotator "NA RC"]
[PlyCount "75"]
[EventDate "2020.10.23"]
[EventType "team-tourn"]
[EventCountry "POL"]
[SourceTitle "playchess.com"]
[Source "ChessBase"]
[SourceQuality "1"]
[TimeControl "5400+30"]

1. e4 {[%emt 0:00:00]} c5 {[%emt 0:00:00]} 2. Nf3 {[%emt 0:00:00]} d6 {[%emt 0:00:00]} 3. Bb5+ {[%emt 0:00:00]} Bd7 {[%emt 0:01:17]} 4. Bxd7+ {[%emt 0:00:00]} Qxd7 {[%emt 0:00:12]} 5. c4 {[%emt 0:01:04]} Nc6 {[%emt 0:03:52]} 6. d4 {[%emt 0:00:47]} cxd4 {[%emt 0:08:44]} 7. Nxd4 {[%emt 0:00:15]} g6 {[%emt 0:02:48]} 8. Nc3 {[%emt 0:02:46]} Bg7 {[%emt 0:03:42]} 9. Be3 Nf6 {[%emt 0:02:06]} 10. f3 {[%emt 0:03:25]} O-O {[%emt 0:04:22]} 11. O-O {[%emt 0:02:15]} Rac8 {[%emt 0:07:57]} 12. b3 {[%emt 0:03:58]} Rfd8 {[%emt 0:07:42]} 13. Rc1 {[%emt 0:06:55]} Nxd4 {[%emt 0:15:29]} 14. Bxd4 {[%emt 0:00:51]} Bh6 {[%emt 0:06:11]} 15. Rc2 {[%emt 0:04:45]} Nh5 {[%emt 0:03:23]} 16. Bxa7 {[%emt 0:09:25]} Nf4 {[%emt 0:03:32]} 17. Nd5 {[%emt 0:04:26]} Nxd5 {[%emt 0:01:20]} 18. Qxd5 {[%emt 0:01:47]} Rc6 {[%emt 0:07:09]} 19. Bf2 {[%emt 0:03:39]} Qc7 {[%emt 0:05:01]} 20. Rd1 {[%emt 0:09:13]} Ra8 {[%emt 0:06:06]} 21. a4 {[%emt 0:03:17]} Ra5 {[%emt 0:06:21]} 22. Qd3 {[%emt 0:01:00]} Ra8 {[%emt 0:00:43]} 23. Re2 {[%emt 0:05:21]} Ra5 {[%emt 0:02:10]} 24. Ra1 {[%emt 0:02:48]} Ra8 {[%emt 0:00:25]} 25. Rc2 {[%emt 0:01:06]} Rca6 {[%emt 0:01:21]} 26. Rca2 {[%emt 0:01:25]} Qc6 {[%emt 0:00:26]} 27. Bd4 {[%emt 0:05:03]} Qd7 {[%emt 0:00:39]} 28. a5 {[%emt 0:01:04]} Qc6 {[%emt 0:00:29]} 29. b4 {[%emt 0:00:44]} Qc7 {[%emt 0:00:30]} 30. Bb6 {[%emt 0:00:57]} Qd7 {[%emt 0:00:32]} 31. b5 {[%emt 0:00:45]} Bg7 {[%emt 0:00:27]} 32. bxa6 {[%emt 0:01:03]} Bxa1 {[%emt 0:00:08]} 33. axb7 {[%emt 0:01:18]} Qxb7 {[%emt 0:00:43]} 34. Rxa1 {[%emt 0:00:22]} Qc6 {[%emt 0:00:41]} 35. Qd5 {[%emt 0:00:49]} Qxd5 {[%emt 0:00:12]} 36. cxd5 {[%emt 0:00:18]} Kg7 {[%emt 0:00:30]} 37. a6 {[%emt 0:00:14]} Kf8 {[%emt 0:00:09]} 38. a7 {[%emt 0:00:09]} 1-0

[Event "POL-chT 2nd League Juniors 2020"]
[Site "Sypniewo"]
[Date "2020.10.29"]
[Round "8.11"]
[White "Tarka, Aleksandra"]
[Black "Hertlein, Irena"]
[Result "0-1"]
[ECO "B20"]
[WhiteElo "1676"]
[BlackElo "1893"]
[Annotator "NA RC"]
[PlyCount "42"]
[EventDate "2020.10.23"]
[EventType "team-tourn"]
[EventCountry "POL"]
[SourceTitle "playchess.com"]
[Source "ChessBase"]
[SourceQuality "1"]
[TimeControl "5400+30"]

1. e4 {[%emt 0:00:00]} c5 {[%emt 0:00:00]} 2. d3 {[%emt 0:00:00]} Nc6 {[%emt 0:00:00]} 3. g3 {[%emt 0:00:00]} g6 {[%emt 0:00:00]} 4. Bg2 {[%emt 0:00:00]} Bg7 {[%emt 0:00:07]} 5. f4 {[%emt 0:00:08]} d6 {[%emt 0:00:48]} 6. Nf3 {[%emt 0:00:33]} e5 {[%emt 0:00:15]} 7. O-O {[%emt 0:04:50]} Nge7 {[%emt 0:00:40]} 8. f5 {[%emt 0:02:35]} gxf5 {[%emt 0:00:37]} 9. Nh4 {[%emt 0:00:08]} f4 {[%emt 0:14:30]} 10. Qh5 {[%emt 0:01:39]} Be6 {[%emt 0:12:29]} 11. gxf4 {[%emt 0:41:53]} exf4 {[%emt 0:01:11]} 12. c3 {[%emt 0:03:39]} (12. Nf5 $11 Rg8 13. Nxg7+ Rxg7 14. Bxf4) 12... Qd7 {[%emt 0:14:20]} 13. Qg5 {[%emt 0:14:34]} (13. Nf5 $17 {might work better.} Nxf5 14. exf5 Bxf5 15. Bxf4) 13... Rg8 $17 {[%emt 0:02:35]} 14. Qxf4 {[%emt 0:02:45]} O-O-O {[%emt 0:03:27]} 15. Nf5 {[%emt 0:11:21]} Nxf5 {[%emt 0:03:22]} 16. exf5 {[%emt 0:00:34]} Bd5 {[%emt 0:00:09]} 17. f6 {[%emt 0:08:56]} Bh6 {[%emt 0:01:25]} 18. Qg3 {[%emt 0:05:05]} Rxg3 {[%emt 0:01:32]} 19. hxg3 {[%emt 0:00:07]} Bxg2 {[%emt 0:00:20]} 20. Kxg2 {[%emt 0:00:10]} Bxc1 {[%emt 0:00:10]} 21. Rxc1 {[%emt 0:00:22]} Qg4 {[%emt 0:00:44]} 0-1

[Event "POL-chT 2nd League Juniors 2020"]
[Site "Sypniewo"]
[Date "2020.10.29"]
[Round "8.11"]
[White "Matyjasek, Michalina"]
[Black "Kukula, Klara"]
[Result "0-1"]
[ECO "E21"]
[WhiteElo "1477"]
[BlackElo "1232"]
[Annotator "NA RC"]
[PlyCount "72"]
[EventDate "2020.10.23"]
[EventType "team-tourn"]
[EventCountry "POL"]
[SourceTitle "playchess.com"]
[Source "ChessBase"]
[SourceQuality "1"]
[TimeControl "5400+30"]

1. d4 Nf6 2. c4 e6 3. Nc3 b6 4. Nf3 Bb7 5. e3 Bb4 6. Bd3 O-O 7. O-O Bxc3 8. bxc3 d6 9. Re1 c5 10. e4 Nbd7 11. e5 dxe5 12. dxe5 Ne8 13. Bg5 f6 14. exf6 Nexf6 15. Rxe6 Qc7 16. Qe2 Ng4 17. Bxh7+ Kxh7 18. Qd3+ Kg8 19. Rd6 Nde5 20. Nxe5 Nxe5 21. Qd1 Nxc4 22. Rd7 Qc6 23. f3 Ne5 24. Rd6 Qe8 25. f4 Nf7 26. Qb3 Kh8 27. Re6 Qc8 28. c4 Qxe6 29. Qc3 Nxg5 30. fxg5 Qf5 31. Qg3 Qf4 32. Qh3+ Kg8 33. Qe6+ Qf7 34. Qe3 Qxc4 35. Qh3 Qd4+ 36. Kh1 Qxa1# 0-1

[Event "POL-chT 2nd League Juniors 2020"]
[Site "Sypniewo"]
[Date "2020.10.29"]
[Round "8.12"]
[White "Lajdamik, Anna"]
[Black "Pastuszko, Katarzyna"]
[Result "1-0"]
[ECO "C44"]
[WhiteElo "1292"]
[BlackElo "1251"]
[Annotator "NA RC"]
[PlyCount "35"]
[EventDate "2020.10.23"]
[EventType "team-tourn"]
[EventCountry "POL"]
[SourceTitle "playchess.com"]
[Source "ChessBase"]
[SourceQuality "1"]
[TimeControl "5400+30"]

1. e4 {[%emt 0:00:00]} e5 {[%emt 0:00:00]} 2. Nf3 {[%emt 0:00:01]} Nc6 {[%emt 0:00:12]} 3. d4 {[%emt 0:00:36]} exd4 {[%emt 0:00:21]} 4. c3 {[%emt 0:00:40]} d5 {[%emt 0:04:38]} 5. exd5 {[%emt 0:01:14]} Qxd5 {[%emt 0:01:08]} 6. cxd4 {[%emt 0:00:39]} Bf5 {[%emt 0:05:04]} 7. Nc3 Qe6+ {[%emt 0:07:26]} 8. Be2 {[%emt 0:10:49]} Nb4 {[%emt 0:11:41]} 9. O-O {[%emt 0:07:37]} Nc2 {[%emt 0:09:39]} 10. Rb1 {[%emt 0:03:52]} O-O-O {[%emt 0:03:31]} 11. Bd3 {[%emt 0:07:57]} Nxd4 {[%emt 0:03:09]} 12. Nxd4 {[%emt 0:03:33]} Qf6 {[%emt 0:16:20]} 13. Nxf5 {[%emt 0:08:50]} Nh6 {[%emt 0:06:56]} 14. Bxh6 {[%emt 0:07:48]} gxh6 {[%emt 0:01:16]} 15. Qf3 {[%emt 0:00:31]} Bb4 {[%emt 0:05:15]} 16. Nd5 {[%emt 0:01:36]} Qe6 {[%emt 0:02:26]} 17. Nxb4 {[%emt 0:00:26]} Rhg8 {[%emt 0:02:23]} 18. Rfe1 {[%emt 0:00:42]} 1-0

[Event "POL-chT 2nd League Juniors 2020"]
[Site "Sypniewo"]
[Date "2020.10.29"]
[Round "8.15"]
[White "Jendrowiak, Maciej"]
[Black "Komendecki, Antoni"]
[Result "1/2-1/2"]
[ECO "A61"]
[WhiteElo "1382"]
[BlackElo "1801"]
[Annotator "NA RC"]
[PlyCount "91"]
[EventDate "2020.10.23"]
[EventType "team-tourn"]
[EventCountry "POL"]
[SourceTitle "playchess.com"]
[Source "ChessBase"]
[SourceQuality "1"]
[TimeControl "5400+30"]

1. d4 {[%emt 0:00:00]} Nf6 {[%emt 0:00:00]} 2. Nf3 {[%emt 0:00:00]} g6 {[%emt 0:00:11]} 3. c4 {[%emt 0:00:41]} c5 {[%emt 0:00:04]} 4. d5 {[%emt 0:03:58]} e6 {[%emt 0:00:08]} 5. Nc3 {[%emt 0:03:39]} exd5 {[%emt 0:00:09]} 6. cxd5 {[%emt 0:01:17]} d6 {[%emt 0:00:18]} 7. e4 {[%emt 0:03:52]} Bg7 {[%emt 0:01:21]} 8. Bd3 {[%emt 0:01:54]} a6 {[%emt 0:00:20]} 9. a4 {[%emt 0:00:22]} O-O {[%emt 0:00:29]} 10. O-O {[%emt 0:01:27]} Re8 {[%emt 0:01:49] A70: Modern Benoni: 6 e4 g6 7 Nf3.} 11. Bg5 {[%emt 0:01:03]} Qc7 {[%emt 0:05:17]} 12. Nd2 {[%emt 0:03:25]} Nbd7 {[%emt 0:27:51] [#]} 13. f4 $146 {[%emt 0:10:29]} ({Predecessor:} 13. Nc4 Ne5 14. Nxe5 Rxe5 15. f4 Re8 16. h3 Qb6 17. Rf2 Nd7 18. a5 Qc7 19. Kh1 {½-½ (37) Jambrovic,G (1803)-Vuckovecki,A Croatia 2013}) 13... Rb8 {[%emt 0:13:04] [#]} 14. Re1 $2 {[%emt 0:05:50]} (14. Kh1 $1 $16) 14... Nb6 {[%emt 0:12:07]} (14... c4 $11 {remains equal.} 15. Nxc4 b5 16. axb5 axb5) 15. a5 {[%emt 0:02:40]} Nbd7 {[%emt 0:02:58]} 16. Qe2 {[%emt 0:03:04]} b5 {[%emt 0:03:05]} 17. axb6 {[%emt 0:00:22]} Nxb6 {[%emt 0:00:08]} 18. Qf1 {[%emt 0:02:02]} ({Of course not} 18. Bxa6 Nfxd5 19. Bxc8 (19. Nxd5 Nxd5 {[%mdl 64] Pin} 20. Bxc8 h6 $15) 19... Qxc8 $15) 18... Ng4 {[%emt 0:02:33]} 19. h3 {[%emt 0:12:47]} Bd4+ {[%emt 0:01:03]} 20. Kh1 {[%emt 0:00:10]} Ne3 {[%emt 0:00:30]} 21. Qf3 {[%emt 0:00:25]} c4 {[%emt 0:00:44]} 22. Bb1 {[%emt 0:00:47]} Nexd5 {[%emt 0:00:24]} 23. Qg3 {[%emt 0:05:06]} Nxc3 {[%emt 0:02:05]} 24. bxc3 {[%emt 0:00:09]} Bg7 {[%emt 0:01:27]} 25. Bc2 {[%emt 0:00:32]} Bb7 {[%emt 0:11:32]} 26. Ba4 {[%emt 0:01:31]} Nxa4 {[%emt 0:03:37]} 27. Rxa4 {[%emt 0:00:08]} d5 {[%emt 0:00:42]} 28. e5 {[%emt 0:00:53]} Qd7 {[%emt 0:00:56]} 29. Ra3 {[%emt 0:00:47]} Qf5 {[%emt 0:02:32]} 30. Qf2 {[%emt 0:01:18]} h6 {[%emt 0:03:57]} 31. Bh4 {[%emt 0:00:53]} Rbc8 {[%emt 0:03:00]} (31... Bf8 $17 32. Raa1 {[#]} d4 $1 {[%mdl 512]}) 32. Kh2 {[%emt 0:02:50]} (32. Qd4 $15) 32... g5 {[%emt 0:03:13]} 33. fxg5 {[%emt 0:02:19]} (33. Bg3 $17) 33... Qxf2 $19 {[%emt 0:00:29]} ({Don't play} 33... Rxe5 34. Qxf5 Rxf5 35. gxh6 $17) 34. Bxf2 {[%emt 0:00:28]} Bxe5+ {[%emt 0:00:06]} 35. Kg1 {[%emt 0:00:09]} hxg5 {[%emt 0:00:10]} 36. Nf3 {[%emt 0:00:13]} f6 {[%emt 0:01:27]} 37. Rb1 {[%emt 0:00:11]} Re7 {[%emt 0:00:35]} 38. Bd4 {[%emt 0:00:13]} Bxd4+ {[%emt 0:00:46]} 39. Nxd4 {[%emt 0:00:04]} Rcc7 {[%emt 0:01:33]} 40. Nf5 {[%emt 0:00:29]} Red7 {[%emt 0:00:02]} 41. Ra2 {[%emt 0:00:16]} Kf7 {[%emt 0:00:39]} 42. Re1 {[%emt 0:00:16]} Bc8 {[%emt 0:01:15]} 43. Rae2 {[%emt 0:00:25]} Ra7 {[%emt 0:01:05]} 44. Re8 {[%emt 0:00:43]} Rac7 {[%emt 0:00:39]} 45. Rh8 {[%emt 0:01:22]} Kg6 {[%emt 0:00:56]} 46. g4 {[%emt 0:00:10]} 1/2-1/2

[Event "POL-chT 2nd League Juniors 2020"]
[Site "Sypniewo"]
[Date "2020.10.29"]
[Round "8.16"]
[White "Karaszewski, Gabriel"]
[Black "Oles, Mateusz"]
[Result "1-0"]
[ECO "B27"]
[WhiteElo "1614"]
[BlackElo "1029"]
[Annotator "NA RC"]
[PlyCount "93"]
[EventDate "2020.10.23"]
[EventType "team-tourn"]
[EventCountry "POL"]
[SourceTitle "playchess.com"]
[Source "ChessBase"]
[SourceQuality "1"]
[TimeControl "5400+30"]

1. e4 {[%emt 0:00:00]} c5 {[%emt 0:00:00]} 2. Nf3 {[%emt 0:00:00]} g6 {[%emt 0:00:00]} 3. c4 {[%emt 0:00:00]} Nf6 {[%emt 0:01:44]} 4. Nc3 {[%emt 0:00:00]} Bg7 {[%emt 0:00:32]} 5. d4 {[%emt 0:00:00]} cxd4 {[%emt 0:00:10]} 6. Nxd4 {[%emt 0:00:00]} Nc6 {[%emt 0:00:47]} 7. Be3 {[%emt 0:00:00]} O-O {[%emt 0:01:17]} 8. Be2 {[%emt 0:00:00]} e6 {[%emt 0:00:45]} 9. O-O {[%emt 0:00:00]} d5 {[%emt 0:00:50]} 10. exd5 {[%emt 0:00:31]} exd5 {[%emt 0:00:11]} 11. Nxc6 {[%emt 0:00:22]} bxc6 {[%emt 0:00:13]} 12. cxd5 {[%emt 0:00:04]} cxd5 {[%emt 0:04:31]} 13. Bb5 Qd6 {[%emt 0:04:30]} 14. h3 {[%emt 0:16:32]} Rd8 {[%emt 0:01:29]} 15. Bd4 {[%emt 0:05:31]} a6 {[%emt 0:03:30]} 16. Ba4 {[%emt 0:03:09]} Bf5 {[%emt 0:06:13]} 17. Re1 {[%emt 0:02:40]} Ne4 {[%emt 0:13:56]} 18. Bxg7 {[%emt 0:01:01]} Kxg7 {[%emt 0:00:16]} 19. Nxe4 {[%emt 0:02:21]} Bxe4 {[%emt 0:01:42]} 20. Qd4+ {[%emt 0:00:19]} f6 {[%emt 0:01:20]} 21. Rad1 {[%emt 0:00:27]} Rac8 {[%emt 0:02:12]} 22. Rxe4 {[%emt 0:01:08]} Qf8 {[%emt 0:11:55]} 23. Qa7+ {[%emt 0:01:30]} Kh8 {[%emt 0:04:58]} 24. Re7 {[%emt 0:02:21]} Qg8 {[%emt 0:03:53]} 25. Qxa6 {[%emt 0:00:39]} Qf8 {[%emt 0:01:08]} 26. Qe6 {[%emt 0:00:33]} f5 {[%emt 0:05:25]} 27. Re1 {[%emt 0:02:09]} Ra8 {[%emt 0:03:35]} 28. Re8 {[%emt 0:00:57]} Rxe8 {[%emt 0:00:31]} 29. Qxe8 {[%emt 0:00:06]} Qxe8 {[%emt 0:00:53]} 30. Rxe8+ {[%emt 0:00:04]} Rxe8 {[%emt 0:00:08]} 31. Bxe8 {[%emt 0:00:06]} Kg7 {[%emt 0:00:04]} 32. f4 {[%emt 0:00:26]} Kf6 {[%emt 0:00:06]} 33. Kf2 {[%emt 0:00:16]} Ke6 {[%emt 0:00:08]} 34. Ke3 {[%emt 0:00:06]} Ke7 {[%emt 0:00:28]} 35. Bc6 {[%emt 0:00:26]} Kd6 {[%emt 0:00:09]} 36. Bxd5 {[%emt 0:00:23]} Kxd5 {[%emt 0:00:11]} 37. a4 {[%emt 0:00:14]} Kc5 {[%emt 0:00:25]} 38. a5 {[%emt 0:00:08]} h6 {[%emt 0:00:27]} 39. b4+ {[%emt 0:00:07]} Kd5 {[%emt 0:00:39]} 40. a6 {[%emt 0:00:05]} Kc6 {[%emt 0:00:09]} 41. b5+ {[%emt 0:00:05]} Kb6 {[%emt 0:00:17]} 42. Kd4 {[%emt 0:00:05]} g5 {[%emt 0:00:35]} 43. fxg5 {[%emt 0:00:05]} hxg5 {[%emt 0:00:05]} 44. Ke5 {[%emt 0:00:04]} g4 {[%emt 0:00:37]} 45. Kxf5 {[%emt 0:00:07]} gxh3 {[%emt 0:00:11]} 46. gxh3 {[%emt 0:00:04]} Kxb5 {[%emt 0:00:14]} 47. a7 {[%emt 0:00:05]} 1-0

[Event "POL-chT 2nd League Juniors 2020"]
[Site "Sypniewo"]
[Date "2020.10.29"]
[Round "8.17"]
[White "Seemann, Pola"]
[Black "Lascar, Maria Elena"]
[Result "1-0"]
[ECO "B23"]
[WhiteElo "1566"]
[BlackElo "1552"]
[Annotator "NA RC"]
[PlyCount "61"]
[EventDate "2020.10.23"]
[EventType "team-tourn"]
[EventCountry "POL"]
[SourceTitle "playchess.com"]
[Source "ChessBase"]
[SourceQuality "1"]
[TimeControl "5400+30"]

1. e4 {[%emt 0:00:00]} c5 {[%emt 0:00:00]} 2. Nc3 {[%emt 0:00:00]} a6 {[%emt 0:01:17]} 3. g3 {[%emt 0:00:00]} b5 {[%emt 0:01:18]} 4. Bg2 {[%emt 0:00:00]} Bb7 {[%emt 0:00:06]} 5. d3 {[%emt 0:00:02]} g6 {[%emt 0:01:30]} 6. f4 {[%emt 0:01:15]} Bg7 {[%emt 0:00:21]} 7. Nh3 {[%emt 0:00:48]} e6 {[%emt 0:01:16]} 8. O-O {[%emt 0:01:32]} Ne7 {[%emt 0:08:09]} 9. Qe2 O-O {[%emt 0:09:46]} 10. f5 {[%emt 0:09:00]} f6 {[%emt 0:02:13]} 11. fxe6 {[%emt 0:06:31]} dxe6 {[%emt 0:01:18]} 12. Nf4 {[%emt 0:00:22]} Qd4+ {[%emt 0:09:48]} 13. Be3 {[%emt 0:06:37]} Qe5 {[%emt 0:00:07]} 14. Qf2 {[%emt 0:00:52]} Nbc6 {[%emt 0:16:11]} 15. Bxc5 {[%emt 0:02:45]} Rad8 {[%emt 0:12:18]} 16. Rad1 {[%emt 0:01:30]} f5 {[%emt 0:09:25]} 17. exf5 {[%emt 0:01:06]} exf5 {[%emt 0:05:54]} 18. Rfe1 {[%emt 0:01:46]} Qxc5 {[%emt 0:01:35]} 19. Qxc5 {[%emt 0:00:11]} Bd4+ {[%emt 0:00:04]} 20. Qxd4 {[%emt 0:00:10]} Nxd4 {[%emt 0:00:28]} 21. Bxb7 {[%emt 0:00:33]} Rd7 {[%emt 0:00:13]} 22. Bg2 {[%emt 0:02:37]} Nxc2 {[%emt 0:01:07]} 23. Re5 {[%emt 0:08:06]} g5 {[%emt 0:01:59]} 24. Ne6 {[%emt 0:00:46]} Rf6 {[%emt 0:00:56]} 25. Nxg5 {[%emt 0:00:43]} h6 {[%emt 0:01:33]} 26. Ne6 {[%emt 0:02:06]} Ng6 {[%emt 0:00:40]} 27. Re2 {[%emt 0:00:35]} Nb4 {[%emt 0:00:18]} 28. d4 {[%emt 0:01:19]} Kf7 {[%emt 0:02:38]} 29. d5 {[%emt 0:02:07]} a5 {[%emt 0:03:41]} 30. a3 {[%emt 0:00:46]} Na6 {[%emt 0:00:05]} 31. Nxb5 {[%emt 0:00:11]} 1-0

[Event "POL-chT 2nd League Juniors 2020"]
[Site "Sypniewo"]
[Date "2020.10.29"]
[Round "8.21"]
[White "Nowak, Filip"]
[Black "Trzebinski, Patryk"]
[Result "0-1"]
[ECO "B01"]
[WhiteElo "1871"]
[BlackElo "1837"]
[Annotator "NA RC"]
[PlyCount "96"]
[EventDate "2020.10.23"]
[EventType "team-tourn"]
[EventCountry "POL"]
[SourceTitle "playchess.com"]
[Source "ChessBase"]
[SourceQuality "1"]
[TimeControl "5400+30"]

1. e4 {[%emt 0:00:00]} d5 {[%emt 0:00:00]} 2. exd5 {[%emt 0:00:00]} Nf6 {[%emt 0:00:00]} 3. d4 {[%emt 0:01:12]} Nxd5 {[%emt 0:00:01]} 4. Nf3 {[%emt 0:00:07]} Bg4 {[%emt 0:00:09]} 5. h3 {[%emt 0:00:24]} Bh5 {[%emt 0:01:04]} 6. c4 {[%emt 0:00:48]} Nb6 {[%emt 0:00:05]} 7. Be3 {[%emt 0:04:11] B01: Scandinavian Defence.} e6 {[%emt 0:02:07]} 8. Nc3 {[%emt 0:02:35]} Nc6 {[%emt 0:00:20]} 9. g4 {[%emt 0:02:23]} Bg6 {[%emt 0:00:06] [#]} 10. b3 $146 {[%emt 0:00:37]} ({Predecessor:} 10. a3 Be7 11. d5 exd5 12. cxd5 Nb8 13. h4 h5 14. Ne5 Bh7 15. Bb5+ N6d7 16. g5 {0-1 (90) Oswald,G (2178)-Jaunooby,A (2189) Blackpool 2012}) 10... Ba3 {[%emt 0:01:24]} 11. Bc1 {[%emt 0:08:03]} Bb4 {[%emt 0:01:50]} 12. Bb2 {[%emt 0:11:01]} Be4 {[%emt 0:04:01]} 13. Be2 {[%emt 0:01:38]} Qf6 {[%emt 0:06:07]} 14. O-O {[%emt 0:09:12]} Bxc3 $1 {[%emt 0:00:13]} 15. Bxc3 {[%emt 0:00:22]} O-O-O {[%emt 0:00:42]} 16. Ne5 {[%emt 0:07:42]} Nxe5 {[%emt 0:03:04]} 17. dxe5 {[%emt 0:00:55]} Qh4 {[%emt 0:02:50]} 18. Qc1 {[%emt 0:04:48]} Qxh3 {[%emt 0:01:25]} 19. f3 {[%emt 0:00:23]} h5 {[%emt 0:02:49]} 20. g5 {[%emt 0:04:54]} Bd3 {[%emt 0:01:55]} 21. Qe3 {[%emt 0:03:08]} Qg3+ {[%emt 0:00:28]} 22. Kh1 {[%emt 0:00:01]} Qh4+ {[%emt 0:00:23]} 23. Kg1 {[%emt 0:00:45]} Bxe2 {[%emt 0:00:06]} 24. Qxe2 {[%emt 0:00:04]} Qxg5+ {[%emt 0:00:06]} 25. Kh1 {[%emt 0:03:31]} Qh4+ {[%emt 0:01:27]} 26. Kg1 {[%emt 0:00:19]} Qg3+ {[%emt 0:02:23]} 27. Kh1 {[%emt 0:00:44]} Qh3+ {[%emt 0:00:06]} 28. Kg1 {[%emt 0:00:04]} Rh6 {[%emt 0:00:07]} 29. Rf2 {[%emt 0:00:33]} Rg6+ {[%emt 0:00:19]} 30. Rg2 {[%emt 0:00:06]} Rxg2+ {[%emt 0:00:07]} 31. Qxg2 {[%emt 0:00:02]} Qxg2+ {[%emt 0:00:12]} 32. Kxg2 {[%emt 0:00:01]} Rd3 {[%emt 0:00:14]} 33. Bb4 {[%emt 0:00:13]} Nd7 {[%emt 0:01:26]} 34. f4 {[%emt 0:00:32]} c5 {[%emt 0:04:17]} 35. Be1 {[%emt 0:00:32] [#]} g5 $1 {[%emt 0:01:33]} 36. fxg5 {[%emt 0:00:51]} Nxe5 {[%emt 0:00:10]} 37. Bg3 {[%emt 0:00:18]} Ng6 {[%emt 0:00:34]} 38. Rf1 {[%emt 0:00:49]} h4 $19 {[%emt 0:00:26]} 39. Be1 {[%emt 0:00:40]} h3+ {[%emt 0:01:09]} 40. Kh2 {[%emt 0:00:39]} Ne5 {[%emt 0:00:18]} 41. Bg3 {[%emt 0:00:35]} Nf3+ {[%emt 0:00:26]} 42. Kxh3 {[%emt 0:00:10]} Nxg5+ {[%emt 0:00:11]} 43. Kg4 {[%emt 0:00:25]} f5+ {[%emt 0:00:45]} 44. Kxg5 {[%emt 0:00:44]} Rxg3+ {[%emt 0:00:06]} 45. Kf6 {[%emt 0:00:14]} Re3 {[%emt 0:01:34]} 46. Rh1 {[%emt 0:00:19]} Kd7 {[%emt 0:01:23]} 47. Rh7+ {[%emt 0:00:06]} Kc6 {[%emt 0:00:05]} 48. Rh8 {[%emt 0:00:21]} f4 {[%emt 0:01:20]} 0-1